[Event "Chhattisgarh Masters GM 2022"]
[Site "Chhattisgarh"]
[Date "2022.09.27"]
[Round "9.7"]
[White "Vaibhav Jayant Raut"]
[Black "Manigandan, S S"]
[Result "1/2-1/2"]
[ECO "A07"]
[WhiteElo "2243"]
[BlackElo "2131"]
[Annotator "TA"]
[PlyCount "90"]
[EventDate "2022.09.19"]
[EventCountry "IND"]
[SourceTitle "playchess.com"]
[Source "ChessBase"]
[SourceQuality "1"]
[TimeControl "5400+30"]

{[%evp 16,90,27,0,14,6,14,0,20,0,0,0,0,0,18,20,7,19,10,0,29,34,40,0,0,0,4,0,24,0,0,0,0,8,38,41,40,6,20,20,31,20,14,20,70,0,37,14,13,0,0,0,12,0,14,0,53,35,45,36,67,0,3,0,0,0,0,0,7,0,0,0,13,0,0,0,18]} 1. Nf3 {[%emt 0:00:09]} Nf6 {[%emt 0:00:07]} 2. g3 {[%emt 0:00:10]} d5 {[%emt 0:01:53]} 3. Bg2 {[%emt 0:00:20]} c6 {[%emt 0:03:53]} 4. O-O {[%emt 0:01:08]} Bg4 {[%emt 0:00:05]} 5. d3 {[%emt 0:07:37]} Nbd7 {[%emt 0:00:10]} 6. Nbd2 {[%emt 0:00:17]} e5 {[%emt 0:00:06]} 7. e4 {[%emt 0:00:10]} dxe4 {[%emt 0:00:09]} 8. dxe4 {[%emt 0:00:13]} Bc5 {[%emt 0:00:05]} 9. Qe2 {[%emt 0:00:25]} O-O {[%emt 0:00:17] A07: Réti Opening: New York and Capablanca Systems.} 10. a4 {[%emt 0:02:24]} a5 {[%emt 0:02:26]} 11. Nc4 {[%emt 0:03:02]} Re8 {[%emt 0:14:03]} 12. Rd1 {[%emt 0:14:12]} Qc7 {[%emt 0:00:58]} 13. h3 {[%emt 0:02:28]} Bh5 {[%emt 0:01:34]} 14. Bd2 {[%emt 0:01:26]} Bf8 {[%emt 0:23:16]} 15. Qe1 {[%emt 0:14:23][%cal Rd2a5]} b6 {[%emt 0:12:58]} 16. Bc3 {[%emt 0:03:25]} h6 {[%emt 0:09:52] [#]} 17. Rdb1 $146 {[%emt 0:07:21]} ({Predecessor:} 17. b3 Bg6 18. Nh4 Bh7 19. Nf5 Bxf5 20. exf5 e4 21. Ne3 Bc5 22. Bb2 Ne5 23. Qe2 Re7 {½-½ (23) Itkis,B (2387)-Belov,V (2389) Alushta 2000}) 17... Ra7 {[%emt 0:13:37]} 18. Nh4 {[%emt 0:01:39]} Kh7 {[%emt 0:01:18]} 19. Nf5 {[%emt 0:07:07]} Bg6 {[%emt 0:00:35]} 20. Rd1 {[%emt 0:06:57]} Bxf5 {[%emt 0:01:22]} 21. exf5 {[%emt 0:00:11]} e4 {[%emt 0:06:41]} (21... Nd5 $5) 22. Rd2 {[%emt 0:00:09]} b5 {[%emt 0:03:12]} (22... Bc5 {seems wilder.} 23. Bd4 Ne5 24. Bxe5 Rxe5 25. Nxe5 Qxe5 26. c3 Qxg3 27. b4 axb4 28. cxb4 e3) 23. Ne3 {[%emt 0:04:11]} b4 {[%emt 0:02:49]} 24. Bd4 {[%emt 0:00:06]} c5 {[%emt 0:00:26]} 25. Bxf6 {[%emt 0:00:27]} Nxf6 {[%emt 0:00:05]} 26. Rad1 {[%emt 0:00:51]} c4 {[%emt 0:00:55]} 27. Rd4 {[%emt 0:00:37]} c3 {[%emt 0:00:37]} 28. Rc4 {[%emt 0:01:03]} Qb6 {[%emt 0:00:23]} 29. bxc3 {[%emt 0:01:01]} Bd6 {[%emt 0:00:35]} (29... Rc7 $11) 30. Kh1 {[%emt 0:03:29]} (30. Ng4 $14) 30... Rae7 {[%emt 0:00:30]} 31. cxb4 {[%emt 0:00:40]} Bxb4 {[%emt 0:00:25]} 32. Qe2 {[%emt 0:02:33][%cal Od1d5]} Bc5 {[%emt 0:00:06]} 33. Rc3 {[%emt 0:00:35]} Qb4 {[%emt 0:00:59]} 34. Rc4 {[%emt 0:05:57]} Qb6 {[%emt 0:00:02]} 35. Kg1 {[%emt 0:04:36]} Bd6 {[%emt 0:00:58]} (35... Rc7 $11) 36. Rc3 {[%emt 0:00:50][%cal Bc4c3,Bc3b3,Bb3b5][%mdl 32] [#] And now Nc4 would win.} Bb4 {[%emt 0:00:29]} 37. Rb3 {[%emt 0:00:19] Strongly threatening c3.} Qa7 {[%emt 0:00:31]} 38. g4 {[%emt 0:02:20]} (38. c3 $14 Bc5 39. Rb5) 38... Qc7 $1 $11 {[%emt 0:00:30] The position is equal.} 39. c3 {[%emt 0:02:56]} Bc5 {[%emt 0:00:02]} 40. Rb5 {[%emt 0:00:21]} Ba7 {[%emt 0:00:51]} 41. c4 {[%emt 0:01:24][%cal Oc4c5]} Bc5 {[%emt 0:00:00]} 42. Qe1 {[%emt 0:00:00]} Bb4 {[%emt 0:00:00]} 43. Qe2 {[%emt 0:00:00][%cal Oc4c5]} Bc5 {[%emt 0:00:00]} 44. Qe1 {[%emt 0:00:00]} Bb4 {[%emt 0:00:00]} 45. Qe2 {[%emt 0:00:00][%cal Oc4c5]} Bc5 {[%emt 0:00:00] Weighted Error Value: White=0.12 (very precise) /Black=0.11 (very precise)} 1/2-1/2

[Event "Chhattisgarh Masters GM 2022"]
[Site "Chhattisgarh"]
[Date "2022.09.27"]
[Round "9.9"]
[White "Neverov, Valeriy"]
[Black "Gusain, Himal"]
[Result "1/2-1/2"]
[ECO "A84"]
[WhiteElo "2430"]
[BlackElo "2359"]
[Annotator "TA"]
[PlyCount "142"]
[EventDate "2022.09.19"]
[EventCountry "IND"]
[SourceTitle "playchess.com"]
[Source "ChessBase"]
[SourceQuality "1"]
[TimeControl "5400+30"]

{[%evp 19,142,14,16,15,24,16,33,19,29,24,20,20,21,0,44,40,50,45,55,51,56,58,98,89,87,76,87,90,153,158,144,147,129,96,82,69,66,81,75,75,54,15,18,20,57,15,15,0,0,0,0,0,6,5,5,5,5,5,5,5,5,5,12,13,45,43,52,32,31,31,8,0,11,0,0,0,0,0,0,0,0,0,0,0,0,0,0,0,0,0,0,0,0,0,0,0,0,0,0,0,0,0,0,0,0,0,0,0,0,0,0,0,0,0,0,0,0,0,0,0,0,0,0,0,0]} 1. d4 {[%emt 0:00:05]} d5 {[%emt 0:00:09]} 2. c4 {[%emt 0:00:20]} e6 {[%emt 0:00:08]} 3. Nf3 {[%emt 0:05:01]} c6 {[%emt 0:00:23]} 4. e3 {[%emt 0:07:29]} Bd6 {[%emt 0:00:40]} 5. Bd3 {[%emt 0:01:08]} f5 {[%emt 0:00:13]} 6. O-O {[%emt 0:00:59]} Nf6 {[%emt 0:00:08]} 7. b3 {[%emt 0:01:17]} Qe7 {[%emt 0:00:08]} 8. a4 {[%emt 0:01:23]} O-O {[%emt 0:00:21]} 9. Ba3 {[%emt 0:00:23]} Bxa3 {[%emt 0:00:08]} 10. Nxa3 {[%emt 0:01:23]} a5 {[%emt 0:00:11]} 11. Nc2 {[%emt 0:08:37][%cal Ba3c2,Bc2e1,Be1f3][%mdl 32] A84: Dutch Defence: 2 c4 Miscellaneous.} b6 {[%emt 0:00:47]} 12. Ne5 {[%emt 0:07:54]} c5 {[%emt 0:04:00]} 13. Qe2 {[%emt 0:26:28] White is slightly better.} Nbd7 {[%emt 0:08:18]} 14. Rfd1 {[%emt 0:01:50]} Bb7 {[%emt 0:06:30]} 15. Nxd7 {[%emt 0:00:31]} Nxd7 {[%emt 0:03:42] [#]} 16. Ne1 $146 {[%emt 0:06:33]} ({Predecessor:} 16. cxd5 exd5 17. Na3 g6 18. Nb5 Rae8 19. Qd2 Qf6 20. Bf1 Re7 21. Rac1 g5 22. g3 {½-½ (31) Shengelia,D (2569)-Krasenkow,M (2639) Sabadell 2008}) 16... Rf6 {[%emt 0:16:15]} 17. Nf3 {[%emt 0:03:47]} Raf8 {[%emt 0:08:35]} 18. cxd5 {[%emt 0:00:25]} exd5 {[%emt 0:00:12]} 19. Rac1 {[%emt 0:00:15]} Rh6 {[%emt 0:05:00]} 20. Qc2 {[%emt 0:03:24]} f4 {[%emt 0:02:22]} 21. Re1 {[%emt 0:01:27]} fxe3 {[%emt 0:00:11]} 22. Rxe3 {[%emt 0:00:26]} Qd6 {[%emt 0:00:21]} 23. h3 {[%emt 0:00:30]} Kh8 {[%emt 0:00:57]} ({Black should play} 23... Qf6) 24. Rce1 $16 {[%emt 0:01:51] [#] And now Ng5 would win.} c4 {[%emt 0:00:47]} 25. bxc4 {[%emt 0:08:20]} dxc4 {[%emt 0:00:10]} 26. Be4 {[%emt 0:00:07]} Bxe4 {[%emt 0:05:45]} 27. Rxe4 {[%emt 0:01:43]} Qd5 $1 {[%emt 0:06:28]} 28. Ne5 {[%emt 0:01:46]} Nxe5 {[%emt 0:10:30]} 29. dxe5 {[%emt 0:00:17][%cal Bd4e5,Be5e6,Be6e7][%mdl 32]} Rc6 {[%emt 0:00:05]} 30. e6 {[%emt 0:02:21] [#] Black must now prevent Rd1.} Re8 {[%emt 0:00:21]} 31. e7 {[%emt 0:05:06]} Rc7 {[%emt 0:04:16]} 32. Rd1 {[%emt 0:02:42]} Qf7 {[%emt 0:00:45]} 33. Rh4 {[%emt 0:00:40][%csl Gh4][%cal Rc2h7]} h6 {[%emt 0:02:09]} 34. Qc3 {[%emt 0:00:29] aiming for Rxh6+.} Kh7 {[%emt 0:03:00]} 35. Rdd4 {[%emt 0:00:27]} Rcxe7 {[%emt 0:01:16] ( -> ...Re1+)} 36. Rhf4 {[%emt 0:00:24]} Qe6 {[%emt 0:01:02]} 37. Qc2+ {[%emt 0:00:34]} Kh8 {[%emt 0:01:19]} 38. Rxc4 {[%emt 0:00:26]} Qe5 {[%emt 0:01:49]} 39. Qg6 {[%emt 0:00:41]} Re6 {[%emt 0:00:47]} 40. Qd3 {[%emt 0:00:23]} Qa1+ {[%emt 0:00:54]} 41. Kh2 {[%emt 0:00:12]} Re1 {[%emt 0:00:25]} 42. Rcd4 {[%emt 0:00:00]} Qb1 {[%emt 0:00:00]} 43. Qf3 {[%emt 0:00:00]} Rh1+ {[%emt 0:00:00]} 44. Kg3 {[%emt 0:00:00]} Qg6+ {[%emt 0:00:00]} 45. Qg4 {[%emt 0:00:00] The position is equal.} (45. Rg4 {with more complications.} Qe6 46. Qf4 Qb3+ 47. f3) 45... Qxg4+ {[%emt 0:00:00]} 46. hxg4 $11 {[%emt 0:00:00][%mdl 4096] Endgame KRR-KRR} Rhe1 {[%emt 0:00:00]} 47. f3 {[%emt 0:00:00]} Kg8 {[%emt 0:00:00]} 48. Rf5 {[%emt 0:00:00]} R1e5 {[%emt 0:00:00]} 49. Rd7 {[%emt 0:00:00]} R5e7 {[%emt 0:00:00]} 50. Rdd5 {[%emt 0:02:17]} Re2 {[%emt 0:00:00]} 51. g5 {[%emt 0:00:28]} R8e6 {[%emt 0:00:00]} 52. gxh6 {[%emt 0:00:37]} Rxh6 {[%emt 0:00:00]} 53. Rg5 {[%emt 0:00:28]} Kh7 {[%emt 0:00:00]} 54. Rd7 {[%emt 0:01:10]} Rg6 {[%emt 0:00:00]} 55. Rxg6 {[%emt 0:00:08]} Kxg6 {[%emt 0:00:00] KR-KR} 56. Rd6+ {[%emt 0:00:15]} Kh7 {[%emt 0:00:00]} 57. Rxb6 {[%emt 0:00:33] Threatens to win with Rb5.} Ra2 {[%emt 0:00:00]} 58. Ra6 {[%emt 0:00:59]} Rxa4 {[%emt 0:00:00]} 59. f4 {[%emt 0:00:15]} g5 {[%emt 0:00:00]} 60. fxg5 {[%emt 0:01:28]} Kg7 {[%emt 0:00:00]} 61. Kh3 {[%emt 0:00:40]} Kf7 {[%emt 0:00:00]} 62. g4 {[%emt 0:00:47]} Kg7 {[%emt 0:00:00]} 63. Kh4 {[%emt 0:00:35]} Ra1 {[%emt 0:00:00]} 64. Ra7+ {[%emt 0:00:05]} Kg6 {[%emt 0:00:00]} 65. Ra6+ {[%emt 0:00:02]} Kg7 {[%emt 0:00:00]} 66. g6 {[%emt 0:00:43]} Kh6 {[%emt 0:00:00]} 67. g7+ {[%emt 0:00:59]} Kxg7 {[%emt 0:00:00]} 68. Kg5 {[%emt 0:00:32]} Rb1 {[%emt 0:00:00]} 69. Ra7+ {[%emt 0:00:27]} Kg8 {[%emt 0:00:00]} 70. Ra8+ {[%emt 0:00:18]} Kg7 {[%emt 0:00:00]} 71. Ra7+ {[%emt 0:00:15]} Kg8 {[%emt 0:00:00] Black defended with fortune.  Weighted Error Value: White=0.05 (flawless) /Black=0.08 (flawless)} 1/2-1/2

[Event "Chhattisgarh Masters GM 2022"]
[Site "Chhattisgarh"]
[Date "2022.09.27"]
[Round "9.9"]
[White "Rajesh, V A V"]
[Black "Praloy Sahoo"]
[Result "1/2-1/2"]
[ECO "D23"]
[WhiteElo "2331"]
[BlackElo "2117"]
[Annotator "TA"]
[PlyCount "64"]
[EventDate "2022.09.19"]
[EventCountry "IND"]
[SourceTitle "playchess.com"]
[Source "ChessBase"]
[SourceQuality "1"]
[TimeControl "5400+30"]

{[%evp 16,64,9,0,24,10,22,16,19,8,21,5,14,0,0,0,0,-1,0,-5,-10,-18,-4,-39,-26,-28,-26,-20,-30,-17,0,-29,0,0,0,-12,-8,0,-17,-66,-45,-69,-62,-56,-33,-35,-30,-58,-54,-49,-72]} 1. d4 {[%emt 0:00:06]} d5 {[%emt 0:00:03]} 2. c4 {[%emt 0:00:04]} c6 {[%emt 0:00:02]} 3. Nf3 {[%emt 0:00:05]} Nf6 {[%emt 0:00:06]} 4. Qc2 {[%emt 0:00:13]} dxc4 {[%emt 0:01:11]} 5. Qxc4 {[%emt 0:00:29]} Bf5 {[%emt 0:00:06]} 6. g3 {[%emt 0:01:16]} Nbd7 {[%emt 0:01:40]} 7. Bg2 {[%emt 0:00:25]} e6 {[%emt 0:00:26]} 8. O-O {[%emt 0:00:30]} Be7 {[%emt 0:04:05]} 9. Nbd2 {[%emt 0:01:02][%cal Bb1d2,Bd2c4,Bc4a5][%mdl 32]} Ne4 {[%emt 0:01:29] D23: Queen's Gambit Accepted: 3 Nf3 Nf6 sidelines.} 10. Qb3 {[%emt 0:01:24]} Qb6 {[%emt 0:00:45]} 11. Nc4 {[%emt 0:00:48]} Qxb3 {[%emt 0:10:36] The position is equal.} 12. axb3 {[%emt 0:00:34]} Nd6 $1 {[%emt 0:01:22] [#]} 13. Na5 $146 {[%emt 0:01:41] next Bf4 is good for White.} ({Predecessor:} 13. Bf4 Nxc4 14. bxc4 O-O 15. Nd2 e5 16. Bxe5 Nxe5 17. dxe5 Rfd8 18. Nb3 Be6 19. Na5 {1-0 (32) Lazavik,D (2472)-Daneshvar,B (2411) Chess.com INT 2022}) 13... Be4 {[%emt 0:24:32]} 14. Ne5 {[%emt 0:14:25] Black must now prevent Bxe4.} Bxg2 {[%emt 0:00:29]} 15. Kxg2 {[%emt 0:00:04][%cal Oe2e4]} f6 {[%emt 0:00:34]} 16. Nec4 {[%emt 0:01:26] Threatens to win with Nxd6+.} O-O-O $1 {[%emt 0:01:50]} 17. Nxd6+ {[%emt 0:07:42]} Bxd6 {[%emt 0:00:06]} 18. Nc4 {[%emt 0:00:03][%csl LRa7,LRd6]} Bb8 {[%emt 0:00:25]} 19. Bf4 {[%emt 0:01:01]} Bxf4 {[%emt 0:10:28]} 20. gxf4 {[%emt 0:00:07]} Kb8 {[%emt 0:00:01]} 21. Ra5 {[%emt 0:02:58]} Nb6 {[%emt 0:07:25]} 22. e3 {[%emt 0:00:05]} Nd5 {[%emt 0:02:17]} 23. Kf3 {[%emt 0:00:36]} (23. Rfa1 $5 {[%cal Ra5a7]}) 23... Ne7 {[%emt 0:00:18]} 24. Rfa1 {[%emt 0:03:25]} Nc8 {[%emt 0:04:55]} 25. Rg1 {[%emt 0:01:39]} g6 {[%emt 0:00:42]} 26. Rc1 {[%emt 0:06:25]} Rd5 {[%emt 0:00:36]} 27. Rca1 {[%emt 0:06:30]} (27. b4 $11 {is superior.}) 27... Rhd8 {[%emt 0:01:19]} 28. Ke2 {[%emt 0:11:37]} b6 {[%emt 0:05:11]} 29. Rxd5 {[%emt 0:00:46]} cxd5 {[%emt 0:09:57]} 30. Nd2 {[%emt 0:01:37]} Nd6 {[%emt 0:00:19]} 31. Rc1 {[%emt 0:00:10]} Kb7 {[%emt 0:00:33]} 32. Kd3 {[%emt 0:00:34]} a5 {[%emt 0:04:47] Weighted Error Value: White=0.12 (very precise) /Black=0.06 (flawless)} 1/2-1/2

[Event "Chhattisgarh Masters GM 2022"]
[Site "Chhattisgarh"]
[Date "2022.09.27"]
[Round "9.10"]
[White "Ratnakaran, K.."]
[Black "Aswath S"]
[Result "1/2-1/2"]
[ECO "C54"]
[WhiteElo "2352"]
[BlackElo "2135"]
[Annotator "TA"]
[PlyCount "81"]
[EventDate "2022.09.19"]
[EventCountry "IND"]
[SourceTitle "playchess.com"]
[Source "ChessBase"]
[SourceQuality "1"]
[TimeControl "5400+30"]

{[%evp 9,81,13,12,12,16,9,6,0,2,7,22,-33,-36,-83,-74,-75,-75,-105,-77,-143,-144,-164,-122,-126,-57,-63,-42,-58,-55,-56,-38,-44,-48,-119,-21,-16,-16,-17,-17,-19,-22,-15,-22,-132,-145,-146,-146,-126,-125,-158,-73,-90,0,0,0,0,0,-141,-134,-440,-440,-425,-22,-29987,0,0,0,-8,0,0,0,0,0,0]} 1. e4 {[%emt 0:00:03]} e5 {[%emt 0:00:19]} 2. Nf3 {[%emt 0:00:06]} Nc6 {[%emt 0:00:05]} 3. Bc4 {[%emt 0:00:05]} Bc5 {[%emt 0:00:07]} 4. c3 {[%emt 0:00:06]} Nf6 {[%emt 0:00:05]} 5. d3 {[%emt 0:00:38]} a5 {[%emt 0:00:24]} 6. h3 {[%emt 0:00:23] C54: Giuoco Piano: 4 c3 Nf6, main lines with 5 d4 and 5 d3.} d6 {[%emt 0:00:07]} 7. Bb3 {[%emt 0:00:10]} h6 {[%emt 0:00:54]} 8. Nbd2 {[%emt 0:00:12]} Ba7 {[%emt 0:00:33]} 9. Nf1 {[%emt 0:00:45] [#]} O-O $146 {[%emt 0:00:18]} ({Predecessor:} 9... Qe7 10. Qe2 Bd7 11. Be3 a4 12. Bc2 b5 13. Bxa7 Nxa7 14. Ng3 g6 15. O-O h5 {0-1 (31) Magnusdottir,V (1777)-Magnusson,M (2003) Reykjavik 2016}) 10. g4 {[%emt 0:00:37]} (10. Ng3 $11) 10... d5 $1 $15 {[%emt 0:00:30]} 11. Qe2 {[%emt 0:00:07]} (11. Ng3 $15) 11... a4 $1 $17 {[%emt 0:00:39]} 12. Bc2 {[%emt 0:00:31]} a3 {[%emt 0:05:07]} 13. b3 {[%emt 0:01:19]} Qd6 {[%emt 0:10:23]} 14. g5 {[%emt 0:01:07]} ({White should try} 14. Ne3) 14... hxg5 {[%emt 0:01:14]} 15. Nxg5 {[%emt 0:00:06]} Qc5 {[%emt 0:04:51]} 16. Bd2 {[%emt 0:01:05]} dxe4 {[%emt 0:15:06]} (16... d4 $1 $17 {[%cal Rd4c3]} 17. c4 Bb6) 17. dxe4 {[%emt 0:04:50][%cal Bd3e4,Be4e5][%mdl 32]} Nd4 {[%emt 0:28:09]} 18. cxd4 {[%emt 0:07:05]} Qxc2 {[%emt 0:00:28]} 19. dxe5 {[%emt 0:00:09]} Qb2 {[%emt 0:01:07][%csl LRa1,LRe5]} 20. Rc1 {[%emt 0:00:24]} Qxe5 {[%emt 0:00:51]} 21. f4 {[%emt 0:00:06]} (21. Nh2 $15) 21... Qe7 {[%emt 0:01:56]} ({Black should play} 21... Qb2 $1 $17 {[%cal Rb2a2]} 22. e5 Qxa2 23. exf6 Bf5) 22. e5 {[%emt 0:00:17]} Nh7 {[%emt 0:02:57]} 23. h4 {[%emt 0:00:06] aiming for Qe4.} f6 {[%emt 0:05:44]} 24. Qh5 {[%emt 0:08:46][%csl Gg5][%cal Rh5h7]} fxg5 {[%emt 0:08:57]} 25. hxg5 {[%emt 0:00:10]} Nxg5 {[%emt 0:00:36][%cal Oc8h3] White must now prevent ...Bh3!} 26. fxg5 {[%emt 0:03:36]} (26. Qh8+ $1 $11 Kf7 27. Qh5+ g6 28. Qxg5 Qxg5 29. fxg5) 26... Qxe5+ {[%emt 0:00:31]} 27. Kd1 {[%emt 0:00:13][%cal Oc1c7]} Be6 {[%emt 0:05:42]} 28. Rxc7 {[%emt 0:11:27][%csl Gh1][%cal Rh5h7]} Qa1+ $1 {[%emt 0:04:27]} (28... Qxc7 $2 29. g6 Bg4+ 30. Qxg4 $18) (28... Rxf1+ $6 29. Rxf1 Rd8 30. Rff7 Qa1+ 31. Ke2 Qe5+ 32. Kd1 Qa1+ 33. Ke2 Qe5+ 34. Kd1 $11) 29. Rc1 {[%emt 0:01:04] [#] White wants to mate with g6.} Rxf1+ $1 {[%emt 0:01:18][%mdl 512]} 30. Rxf1 {[%emt 0:00:08] Intending g6 and mate.} Qd4 {[%emt 0:00:10]} (30... Qxa2 $17 {( -> ...Rd8)} 31. Rf3 (31. g6 $2 Qxb3+ 32. Rc2 Bg4+ 33. Qxg4 a2 $19) 31... Bxb3+ 32. Ke1 Bf7) 31. Rf4 $1 $11 {[%emt 0:06:05]} Qg1+ {[%emt 0:00:26]} 32. Kc2 {[%emt 0:00:49]} Qc5+ {[%emt 0:00:45]} 33. Kb1 {[%emt 0:28:38] [#]} (33. Kd1 $1 $11 {was the only way to keep the balance.} Qg1+ 34. Kc2 (34. Ke2 Qg2+ 35. Kd1 Qg1+ $11) 34... Qc5+ 35. Kd1 (35. Kb1 Bf5+ 36. Rxf5 Qxf5+ 37. Rc2 Rc8 $17) 35... Qg1+) 33... Bf5+ $1 $17 {[%emt 0:00:09][%mdl 1024] Black has strong compensation.} 34. Ka1 $2 {[%emt 0:00:38][%mdl 8192]} (34. Rxf5 $17 Qxf5+ 35. Rc2) 34... Qe5+ $19 {[%emt 0:00:22]} 35. Rc3 {[%emt 0:00:21] g6 is the strong threat.} Bd4 $2 {[%emt 0:01:09] A strong pair of Bishops.} (35... Rd8 $19 36. g6 Rxd2 37. Qh7+ Kf8 38. Rxf5+ Qxf5 39. Qh8+ (39. Rc8+ {gets mated.} Qxc8 40. Qh8+ Ke7 41. Qh4+ Ke6 42. Qe1+ Kf6 43. Qxd2 Qf5 44. Qd6+ Kg5 45. Qg3+ Kh6 46. Qh4+ Kxg6 47. Qg3+ Kf7 48. Qc7+ Ke8) 39... Ke7 40. Rc7+ Rd7 41. Qxg7+ Kd6 42. Rxd7+ Qxd7 43. Qxd7+ Kxd7) 36. Qf3 $4 {[%emt 0:01:58][%mdl 8192]} (36. Rff3 Qe2 37. Rxf5 Bxc3+ 38. Bxc3 Qxh5 39. Rf1 Rd8 40. Rc1 Qe2) (36. Rxd4 $11 Qxd4 37. g6 Qg1+ 38. Rc1 Qxg6 39. Qxg6 Bxg6 40. Bb4) 36... Rc8 $2 {[%emt 0:00:49]} (36... Re8 {mates} 37. Rxd4 Qxd4 38. Qh5 {[#]} Re3 $3 {[%mdl 512]} 39. g6 Rxc3 40. Qh7+ Kf8 41. Qh8+ Ke7 42. Bg5+ Kd6 43. Qd8+ Bd7 44. Bf4+ Qxf4 45. Qb6+ Ke7 46. Qb4+ Qxb4 47. Kb1 Bf5+ 48. Ka1 Rc1#) 37. Rxd4 $1 $11 {[%emt 0:07:16] The position is equal.} Qxd4 {[%emt 0:00:14]} 38. Qe3 $132 {[%emt 0:01:43][%mdl 2048] Inhibits Qg1+. White puts up resistance} Qxe3 {[%emt 0:00:25]} 39. Rxc8+ {[%emt 0:00:07]} Bxc8 {[%emt 0:00:01]} 40. Bxe3 {[%emt 0:00:09]} Kf7 {[%emt 0:00:19]} 41. Kb1 {[%emt 0:00:36] Weighted Error Value: White=0.39/Black=0.45} 1/2-1/2